bitfinex/quotes_SOLUSD_20250919
["timestamp","ask_amount","ask_price","bid_price","bid_amount"]
[1758283200617,0.68,241.11,241.07,0.28432314]
[1758283201113,14.51559389,241.12,241.08,0.68]
[1758283201409,15.19559389,241.12,241.08,0.68]
[1758283201711,0.68,241.11,241.08,0.68]
[1758283201901,0.68,241.11,241.07,0.28432314]
[1758283202106,0.68,241.11,241.07,0.96432314]
[1758283202613,4.14765657,241.1,241.07,0.96432314]
[1758283202818,4.82765657,241.1,241.07,0.28432314]
[1758283203119,4.14765657,241.1,241.07,0.28432314]
[1758283203300,4.14765657,241.1,241.07,0.96432314]
[1758283203823,4.14765657,241.1,241.07,0.28432314]
[1758283203987,4.14765657,241.1,241.07,0.96432314]
[1758283204502,4.14765657,241.1,241.08,31.82]
[1758283204684,14.51559389,241.12,241.08,31.82]
[1758283204881,16.42938098,241.12,241.08,31.82]
[1758283205282,0.68,241.11,241.03,0.68]
[1758283205512,0.68,241.11,241.05,0.28432314]
[1758283205890,0.68,241.11,241.05,0.96432314]
[1758283206092,0.68,241.11,241.06,0.68]
[1758283206510,0.68,241.11,241.07,0.68]
[1758283207089,4.14765657,241.1,241.07,0.68]
[1758283207580,14.516798,241.1,241.07,0.68]
[1758283208821,4.14765657,241.1,241.07,0.68]
[1758283210000,4.14765657,241.1,241.05,1.51811023]
[1758283210196,4.14765657,241.1,241.05,0.28432314]
[1758283210197,0.68,241.09,241.05,0.28432314]
[1758283210609,0.68,241.09,241.05,0.96432314]
[1758283210801,14.516798,241.1,241.05,0.28432314]
[1758283211003,15.196798,241.1,241.06,0.68]
[1758283211198,0.68,241.09,241.05,0.28432314]
[1758283211400,14.516798,241.1,241.06,0.68]
[1758283211613,15.196798,241.1,241.06,0.68]
[1758283213422,4.14800066,241.08,241.05,0.28432314]
[1758283213602,4.14800066,241.08,241.01,0.1]
[1758283213603,1.23378709,241.06,241.01,0.1]
[1758283213929,1.23378709,241.05,241.02,31.82]
[1758283214097,0.68,241.04,241.02,31.82]
[1758283214294,1.91378709,241.06,241.02,32.5]
[1758283214525,0.68,241.06,241.03,31.82]
[1758283214733,4.14784676,241.09,241.04,1.51811023]
[1758283214893,4.14784676,241.09,241.05,0.68]
[1758283216011,4.14765657,241.1,241.05,0.68]
[1758283216202,0.68,241.09,241.05,0.68]
[1758283216514,0.68,241.08,241.04,0.28432314]
[1758283217011,0.68,241.08,241.04,0.96432314]
[1758283217312,16.43058509,241.1,241.05,0.68]
[1758283217611,15.196798,241.1,241.06,0.68]
[1758283218188,0.68,241.09,241.04,2.19811023]
[1758283218388,0.68,241.09,241.05,0.68]
[1758283218591,4.14782861,241.09,241.04,1.51811023]
[1758283218802,4.14782861,241.09,241.06,0.68]
[1758283218999,4.14782861,241.09,241.07,0.68]
[1758283219202,4.14782861,241.09,241.08,31.8]
[1758283219591,4.14764988,241.11,241.08,32.48]
[1758283219794,4.14764988,241.11,241.08,31.8]
[1758283220013,4.82764988,241.11,241.08,31.8]
[1758283223419,4.14731254,241.12,241.08,31.8]
[1758283223619,4.82731254,241.12,241.08,32.48]
[1758283224719,4.14731254,241.12,241.09,0.68]
[1758283225108,4.14731254,241.12,241.08,31.8]
[1758283225316,4.14731254,241.12,241.09,0.66]
[1758283226233,11.31527079,241.13,241.1,0.66]
[1758283226416,11.31527079,241.13,241.11,0.66]
[1758283229001,11.31527079,241.13,241.12,0.66]
[1758283230532,11.31527079,241.13,241.09,0.28432314]
[1758283230717,11.31527079,241.13,241.1,0.66]
[1758283230924,11.31527079,241.13,241.11,32.46]
[1758283231413,11.31527079,241.13,241.11,31.8]
[1758283231827,11.31527079,241.13,241.11,32.46]
[1758283232814,11.31527079,241.13,241.11,31.8]
[1758283233216,11.31527079,241.13,241.11,32.46]
[1758283234033,11.31527079,241.13,241.11,31.8]
[1758283235015,1.93378709,241.12,241.06,26.28432314]
[1758283235237,22.91690924,241.13,241.08,0.28432314]
[1758283235444,21.68312215,241.13,241.09,0.66]
[1758283235735,21.68312215,241.13,241.1,0.66]
[1758283236127,22.38312215,241.13,241.08,0.28432314]
[1758283236333,22.38312215,241.13,241.08,0.94432314]
[1758283236525,22.38312215,241.13,241.09,0.66]
[1758283237242,21.68312215,241.13,241.09,0.66]
[1758283237837,21.68312215,241.13,241.08,0.28432314]
[1758283238037,11.31527079,241.13,241.09,0.66]
[1758283238245,11.31527079,241.13,241.1,0.66]
[1758283238544,11.31527079,241.13,241.11,31.8]
[1758283239237,4.14715152,241.13,241.11,31.8]
[1758283239413,4.14715152,241.13,241.11,32.46]
[1758283239840,4.14695753,241.15,241.11,32.46]
[1758283240054,74.72104358,241.2,241.14,1.23378709]
[1758283240055,4.14610887,241.19,241.14,1.23378709]
[1758283240253,4.14610887,241.19,241.16,1.23378709]
[1758283240554,4.14610887,241.19,241.16,1.89378709]
[1758283241242,4.1457651,241.21,241.16,0.66]
[1758283241550,0.7,241.19,241.15,32.08432314]
[1758283241917,0.7,241.19,241.15,32.74432314]
[1758283242415,14.51017785,241.21,241.15,32.74432314]
[1758283242610,15.21017785,241.21,241.15,32.74432314]
[1758283243016,15.21017785,241.21,241.15,33.97811023]
[1758283243233,15.21017785,241.21,241.16,0.66]
[1758283243424,4.84610617,241.2,241.16,0.66]
[1758283244140,0.2,241.23,241.19,1.23378709]
[1758283244318,0.2,241.23,241.22,1.23378709]
[1758283244741,0.2,241.23,241.22,1.89378709]
[1758283246136,0.2,241.23,241.22,41.91586581]
[1758283249751,0.2,241.23,241.22,42.60661607]
[1758283250622,0.2,241.23,241.22,43.02117539]
[1758283250834,0.2,241.23,241.22,48.82614096]
[1758283251347,0.2,241.23,241.22,50.75067831]
[1758283251648,0.2,241.23,241.22,44.68054773]
[1758283253043,0.2,241.23,241.22,76.46054773]
[1758283254753,0.2,241.23,241.22,42.75601038]
[1758283255055,0.2,241.23,241.22,76.04598841]
[1758283258156,0.2,241.23,241.22,76.46054773]
[1758283258340,0.2,241.23,241.22,78.38508508]
[1758283259359,0.2,241.23,241.22,82.53067831]
[1758283259638,0.2,241.23,241.22,82.11611899]
[1758283259861,0.2,241.23,241.22,77.97052576]
[1758283260046,0.2,241.23,241.22,78.38508508]
[1758283260359,0.2,241.23,241.22,75.36598841]
[1758283261156,0.2,241.23,241.22,76.05598841]
[1758283262847,0.2,241.23,241.22,82.54067831]
[1758283263037,0.2,241.23,241.22,82.12611899]
[1758283264763,0.2,241.23,241.22,77.98052576]
[1758283265058,0.2,241.23,241.22,78.39508508]
[1758283266759,0.2,241.23,241.22,82.54067831]
[1758283267068,0.2,241.23,241.22,82.12611899]
[1758283268957,0.2,241.26,241.23,14.02207872]
[1758283269170,0.2,241.26,241.24,48.12114102]
[1758283269370,0.2,241.26,241.24,48.81114102]
[1758283269766,0.2,241.26,241.24,50.47016924]
[1758283270259,0.2,241.26,241.24,54.61541878]
[1758283271268,0.2,241.26,241.24,50.47016924]
[1758283271774,0.2,241.26,241.24,16.78563189]
[1758283271978,0.2,241.26,241.24,49.78016924]
[1758283272193,0.2,241.26,241.24,50.47016924]
[1758283275364,0.2,241.26,241.24,18.71016924]
[1758283275587,0.2,241.26,241.24,16.78563189]
[1758283275887,0.2,241.26,241.24,48.93915958]
[1758283276182,0.2,241.26,241.24,17.60564429]
[1758283276397,0.2,241.26,241.24,1.65902822]
[1758283276695,0.91,241.25,241.24,61.34356557]
[1758283276865,0.2,241.25,241.24,61.34356557]
[1758283277066,0.2,241.25,241.24,61.48572714]
[1758283277484,0.2,241.25,241.24,61.77005028]
[1758283279172,0.2,241.25,241.24,28.08551293]
[1758283279377,0.2,241.25,241.24,61.77005028]
[1758283280485,0.2,241.25,241.24,62.46005028]
[1758283282280,0.2,241.25,241.24,36.46005028]
[1758283282497,0.2,241.25,241.24,50.47016924]
[1758283288496,0.12085662,241.25,241.24,50.47016924]
[1758283291790,0.12085662,241.25,241.24,54.61541878]
[1758283294714,0.12085662,241.25,241.24,50.47016924]
[1758283294905,0.12085662,241.25,241.24,54.61541878]
[1758283295603,0.12085662,241.25,241.24,50.47016924]
[1758283295799,0.12085662,241.25,241.24,47.85563189]
[1758283295985,0.12085662,241.25,241.24,49.78016924]
[1758283296305,0.19556724,241.26,241.25,0.42648471]
[1758283296506,0.19556724,241.26,241.25,2.35102206]
[1758283296737,0.19556724,241.26,241.25,3.04102206]
[1758283297991,0.19556724,241.26,241.25,4.69991268]
[1758283299100,0.19556724,241.26,241.25,2.77537533]
[1758283299398,0.19556724,241.26,241.25,4.69991268]
[1758283301510,0.19556724,241.26,241.25,8.8449904]
[1758283302017,0.19556724,241.26,241.25,22.44058441]
[1758283303618,0.2,241.27,241.26,14.02207872]
[1758283303816,0.2,241.27,241.26,48.79110666]
[1758283304308,0.12716444,241.28,241.27,0.42648471]
[1758283304506,0.12716444,241.28,241.27,1.11648471]
[1758283305204,0.12716444,241.28,241.27,3.04102206]
[1758283305407,0.12716444,241.28,241.27,4.6997751]
[1758283306623,0.12716444,241.28,241.27,8.84450921]
[1758283309431,0.12716444,241.28,241.27,4.6997751]
[1758283309611,0.12716444,241.28,241.27,35.7497751]
[1758283310229,0.12716444,241.28,241.27,36.4397751]
[1758283311833,0.12716444,241.28,241.27,35.74593782]
[1758283312414,0.18190098,241.29,241.28,14.02207872]
[1758283312734,0.18190098,241.29,241.28,15.25277879]
[1758283313816,0.18190098,241.29,241.28,16.91153182]
[1758283314549,0.18190098,241.29,241.28,22.16055038]
[1758283315855,0.2,241.34,241.33,13.59559401]
[1758283316010,0.78,241.39,241.35,39.59559401]
[1758283316214,0.1,241.39,241.38,26.0]
[1758283316513,0.1,241.39,241.38,46.99277879]
[1758283316727,0.1,241.39,241.38,14.02207872]
[1758283316927,0.78,241.39,241.38,46.99277879]
[1758283317131,0.78,241.39,241.38,51.13445437]
[1758283320441,0.1,241.39,241.38,4.56816029]
[1758283320617,0.81,241.39,241.38,5.79886036]
[1758283320818,0.81,241.39,241.38,37.09237565]
[1758283321240,0.81,241.39,241.38,37.23453722]
[1758283321441,0.81,241.39,241.38,37.37669879]
[1758283321630,0.81,241.39,241.38,37.51886036]
[1758283322648,0.81,241.39,241.38,5.79886036]
[1758283322960,0.81,241.39,241.38,37.51886036]
[1758283323244,0.81,241.39,241.38,4.42599872]
[1758283323550,0.81,241.39,241.38,37.51886036]
[1758283324261,0.81,241.39,241.38,36.14599872]
[1758283324552,0.81,241.39,241.38,4.42599872]
[1758283324796,0.81,241.39,241.38,36.14599872]
[1758283325525,0.81,241.39,241.38,37.37669879]
[1758283327148,0.81,241.39,241.38,5.65669879]
[1758283327326,0.81,241.39,241.38,37.37669879]
[1758283333046,0.1,241.39,241.38,37.37669879]
[1758283333471,0.1,241.39,241.38,37.51886036]
[1758283333672,0.1,241.39,241.38,38.22886036]
[1758283334649,0.1,241.39,241.38,51.82445437]
[1758283337465,0.1,241.39,241.38,50.5937543]
[1758283337787,0.1,241.39,241.38,51.82445437]
[1758283338177,0.1,241.39,241.38,55.96729967]
[1758283338561,0.71,241.48,241.43,0.14216157]
[1758283338763,0.71,241.47,241.46,26.0]
[1758283338984,0.1,241.49,241.47,0.42648471]
[1758283339187,0.1,241.49,241.48,33.09286164]
[1758283339367,0.81,241.49,241.48,33.09286164]
[1758283340267,0.1,241.49,241.48,37.51770577]
[1758283340472,0.1,241.49,241.48,4.5670057]
[1758283340671,0.81,241.49,241.48,36.2870057]
[1758283340964,4.95095821,241.49,241.48,36.14484413]
[1758283341163,4.95095821,241.49,241.48,35.86052099]
[1758283341961,4.95095821,241.49,241.48,31.72]
[1758283342167,4.95095821,241.49,241.47,10.35134994]
[1758283342368,5.47165828,241.49,241.48,31.72]
[1758283342976,6.18165828,241.49,241.48,31.72]
[1758283343288,16.53405382,241.49,241.48,31.72]
[1758283343489,15.30335375,241.49,241.39,27.23070007]
[1758283343709,0.71,241.48,241.4,32.97070007]
[1758283344005,4.1414727,241.46,241.42,10.35134994]
[1758283344194,4.1414727,241.46,241.43,31.74]
[1758283344386,0.71,241.45,241.43,31.74]
[1758283344588,0.71,241.44,241.43,31.74]
[1758283345212,4.85181577,241.44,241.43,31.74]
[1758283346300,15.21478595,241.47,241.43,31.74]
[1758283346506,0.72,241.46,241.43,31.74]
[1758283347005,0.72,241.45,241.43,31.74]
[1758283347716,4.86180795,241.45,241.43,31.74]
[1758283348097,4.14180795,241.45,241.43,31.74]
[1758283348421,4.14180795,241.45,241.43,42.09348476]
[1758283349303,4.86144041,241.47,241.44,0.28432314]
[1758283349501,0.72,241.46,241.41,0.67]
[1758283349724,4.86164423,241.45,241.43,10.45221656]
[1758283350991,4.86164423,241.45,241.44,31.72]
[1758283352115,4.14164423,241.45,241.44,31.72]
[1758283352808,4.86145328,241.47,241.44,31.72]
[1758283353206,4.86145328,241.47,241.44,43.30367874]
[1758283353518,4.1411297,241.48,241.44,43.30367874]
[1758283353812,0.72,241.47,241.44,43.30367874]
[1758283354011,0.1,241.49,241.45,1.51502321]
[1758283354216,0.1,241.49,241.47,1.23070007]
[1758283354394,0.1,241.49,241.48,31.72]
[1758283354788,0.1,241.49,241.48,32.00432314]
[1758283355197,0.1,241.49,241.48,33.66218243]
[1758283357693,0.1,241.49,241.48,34.33218243]
[1758283358116,0.1,241.49,241.48,33.66218243]
[1758283360611,0.1,241.49,241.48,34.474344]
[1758283362211,0.1,241.49,241.48,33.804344]
[1758283362416,0.1,241.49,241.48,1.94218243]
[1758283362617,4.96095821,241.49,241.48,33.66218243]
[1758283362995,4.24095821,241.49,241.48,33.66218243]
[1758283364916,4.24095821,241.49,241.48,1.65785929]
[1758283365111,4.96095821,241.49,241.48,31.72]
[1758283367515,4.24095821,241.49,241.48,31.72]
[1758283369213,0.1,241.49,241.48,32.00432314]
[1758283369438,0.1,241.49,241.48,32.67432314]
[1758283369603,4.24095821,241.49,241.48,32.00432314]
[1758283369999,4.96095821,241.49,241.44,0.14216157]
[1758283370303,0.72,241.48,241.43,0.67]
[1758283370519,0.72,241.48,241.45,0.28432314]
[1758283370829,0.72,241.48,241.46,31.72]
[1758283371319,14.59335375,241.49,241.46,31.72]
[1758283371925,15.31335375,241.49,241.46,31.72]
[1758283373724,14.59335375,241.49,241.46,31.72]
[1758283374214,15.31335375,241.49,241.46,31.72]
[1758283375222,14.59335375,241.49,241.46,31.72]
[1758283375609,0.67,241.48,241.34,33.54]
[1758283375807,0.67,241.47,241.4,0.72]
[1758283376017,2.59151707,241.47,241.41,31.72]
[1758283376215,2.59151707,241.47,241.42,0.14216157]
[1758283376423,2.59151707,241.47,241.42,1.00432314]
[1758283376807,0.67,241.47,241.42,1.00432314]
[1758283377005,0.67,241.47,241.43,0.72]
[1758283377330,0.67,241.47,241.44,31.72]
[1758283377528,4.1414727,241.46,241.44,31.72]
[1758283379432,4.1414727,241.46,241.44,31.72]
[1758283379612,4.1414727,241.46,241.44,32.44]
[1758283380918,4.1414727,241.46,241.44,31.72]
[1758283381119,4.1414727,241.46,241.44,32.44]
[1758283381308,15.19395395,241.48,241.44,31.72]
[1758283381547,0.7,241.47,241.44,31.72]
[1758283382815,16.41547102,241.48,241.44,32.44]
[1758283383043,17.11547102,241.48,241.44,32.44]
[1758283383249,4.1414727,241.46,241.44,31.72]
[1758283383713,4.1414727,241.46,241.44,32.44]
[1758283384218,4.1414727,241.46,241.44,31.72]
[1758283384936,4.14130119,241.47,241.44,31.72]
[1758283385515,4.14130119,241.47,241.44,32.44]
[1758283385817,4.14130119,241.47,241.45,0.72]
[1758283386633,0.1,241.49,241.46,0.72]
[1758283387734,0.1,241.49,241.47,0.14216157]
[1758283388037,0.1,241.49,241.48,32.72432314]
[1758283388816,0.1,241.49,241.48,32.86648471]
[1758283391339,0.1,241.49,241.48,0.42648471]
[1758283391541,4.24095821,241.49,241.48,31.74]
[1758283391923,15.29335375,241.49,241.44,0.42648471]
[1758283392126,15.29335375,241.49,241.45,31.74]
[1758283392127,2.62151707,241.48,241.45,31.74]
[1758283392755,1.92151707,241.46,241.4,0.72]
[1758283393048,2.62151707,241.46,241.41,24.7]
[1758283393247,14.49575481,241.45,241.41,24.7]
[1758283393452,15.19575481,241.45,241.41,24.7]
[1758283395238,15.19575481,241.45,241.41,25.42]
[1758283395432,14.49575481,241.45,241.41,24.7]
[1758283395642,14.49575481,241.45,241.42,0.72]
[1758283395850,14.49575481,241.45,241.41,24.7]
[1758283396022,14.49575481,241.45,241.41,25.42]
[1758283397152,10.35411058,241.45,241.41,25.42]
[1758283398256,10.35411058,241.45,241.42,0.72]
[1758283398664,4.1414727,241.46,241.43,0.72]
[1758283399226,4.1414727,241.46,241.43,2.64210013]
[1758283399524,4.14125706,241.48,241.44,1.00432314]
[1758283399749,0.1,241.49,241.47,1.92210013]
[1758283399928,0.1,241.49,241.48,31.74]
[1758283400746,4.24096223,241.49,241.48,31.74]
[1758283401342,4.24096223,241.49,241.48,32.46]
[1758283401534,0.1,241.49,241.48,32.46]
[1758283403459,0.1,241.49,241.48,32.74432314]
[1758283412356,0.1,241.49,241.48,32.72432314]
[1758283412735,4.24095821,241.49,241.48,32.72432314]
[1758283412932,4.24095821,241.49,241.47,1.92210013]
[1758283413156,4.24095821,241.49,241.48,31.72]
[1758283413553,4.24095821,241.49,241.47,2.61210013]
[1758283413746,4.24095821,241.49,241.48,31.72]
[1758283415943,4.24095821,241.49,241.48,32.41]
[1758283415944,0.1,241.49,241.48,32.41]
[1758283416160,0.1,241.49,241.48,32.69432314]
[1758283418344,0.1,241.49,241.48,34.61642327]
[1758283419346,0.1,241.49,241.48,34.75858484]
[1758283422164,0.1,241.49,241.48,34.73858484]
[1758283429260,0.1,241.49,241.48,48.33417885]
[1758283429853,0.1,241.49,241.48,52.47427624]
[1758283431857,0.1,241.49,241.48,54.39637637]
[1758283435759,0.1,241.5,241.49,14.02207872]
[1758283435970,0.1,241.5,241.49,14.74207872]
[1758283436570,0.1,241.5,241.49,19.55156792]
[1758283441382,0.1,241.59,241.53,0.42648471]
[1758283441567,0.69,241.58,241.55,0.14216157]
[1758283441766,0.1,241.59,241.57,0.28432314]
[1758283441985,0.1,241.59,241.58,31.98432314]
[1758283442395,4.92924417,241.59,241.58,31.98432314]
[1758283443701,0.79,241.59,241.58,31.98432314]
[1758283444315,0.1,241.59,241.58,32.12648471]
[1758283445389,0.1,241.59,241.58,36.26527555]
[1758283447202,0.1,241.59,241.58,36.94527555]
[1758283450795,0.1,241.59,241.58,36.26527555]
[1758283452201,0.1,241.59,241.58,30.56527555]
[1758283452513,0.1,241.59,241.58,62.26527555]
[1758283453113,4.13894468,241.61,241.59,0.42648471]
[1758283453114,3.23894468,241.61,241.59,0.42648471]
[1758283453305,3.23894468,241.61,241.6,31.84216157]
[1758283454416,3.23894468,241.61,241.6,35.08110625]
[1758283455630,4.82873023,241.62,241.61,0.28432314]
[1758283456530,4.82873023,241.62,241.61,31.98432314]
[1758283457231,4.13873023,241.62,241.61,31.98432314]
[1758283457440,1.22823288,241.62,241.61,31.98432314]
[1758283457602,0.72823288,241.62,241.61,31.98432314]
[1758283458233,4.13855895,241.63,241.62,0.14216157]
[1758283463719,5.36679183,241.63,241.62,0.14216157]
[1758283464222,4.13855895,241.63,241.62,0.14216157]
[1758283464560,4.13855895,241.63,241.62,0.82216157]
[1758283465427,4.13855895,241.63,241.62,0.14216157]
[1758283465627,4.13855895,241.63,241.62,0.83216157]
[1758283466042,4.13855895,241.63,241.62,0.14216157]
[1758283466251,4.13855895,241.63,241.62,0.83216157]
[1758283466430,4.23847085,241.64,241.62,0.83216157]
[1758283466636,4.23847085,241.64,241.63,31.82216157]
[1758283467253,6.12670373,241.64,241.56,26.0]
[1758283467428,1.88823288,241.63,241.57,31.68]
[1758283467625,1.22823288,241.63,241.59,0.14216157]
[1758283470343,4.23847085,241.64,241.63,0.42648471]
[1758283471036,0.1,241.64,241.63,1.11648471]
[1758283471332,0.1,241.64,241.63,0.42648471]
[1758283471546,0.1,241.64,241.63,32.14648471]
[1758283472056,0.1,241.64,241.63,36.28471339]
[1758283472233,0.1,241.64,241.63,36.97471339]
[1758283472434,0.1,241.64,241.63,36.28471339]
[1758283473843,0.1,241.64,241.63,36.97471339]
[1758283474041,0.1,241.64,241.63,36.28471339]
[1758283475061,0.1,241.64,241.63,36.97471339]
[1758283475754,0.1,241.64,241.63,36.28471339]
[1758283476068,0.1,241.64,241.63,36.97471339]
[1758283476242,0.1,241.64,241.63,5.25471339]
[1758283476443,0.1,241.64,241.63,36.97471339]
[1758283477476,4.89838768,241.64,241.63,31.72]
[1758283477966,4.89838768,241.64,241.59,4.13827492]
[1758283478170,1.88823288,241.63,241.54,0.69]
[1758283478468,0.66,241.63,241.55,31.72]
[1758283478777,0.66,241.63,241.57,0.14216157]
[1758283478980,14.58435689,241.64,241.59,0.28432314]
[1758283479185,0.66,241.63,241.61,0.28432314]
[1758283479389,4.13873023,241.62,241.61,0.28432314]
[1758283479766,4.79873023,241.62,241.61,0.28432314]
[1758283483363,4.13873023,241.62,241.61,0.28432314]
[1758283483588,4.13873023,241.62,241.59,0.14216157]
[1758283483795,4.79873023,241.62,241.61,0.28432314]
[1758283484277,4.13873023,241.62,241.61,0.28432314]
[1758283489500,4.13873023,241.62,241.61,31.98432314]
[1758283491197,4.13855895,241.63,241.62,0.28432314]
[1758283491703,4.79855895,241.63,241.61,31.7]
[1758283496589,4.13855895,241.63,241.61,31.7]
[1758283497698,4.13855895,241.63,241.62,31.68]
[1758283497907,4.13855895,241.63,241.62,31.96432314]
[1758283500102,15.16495633,241.63,241.59,11.14596921]
[1758283500406,0.68,241.62,241.6,0.28432314]
[1758283500608,0.68,241.62,241.6,31.96432314]
[1758283501114,14.48495633,241.63,241.6,31.96432314]
[1758283501286,15.16495633,241.63,241.6,31.96432314]
[1758283501486,2.5991527,241.62,241.56,12.42776362]
[1758283501811,1.9191527,241.59,241.57,31.68]
[1758283501989,0.68,241.58,241.57,31.68]
[1758283502190,4.13941551,241.58,241.57,31.68]
[1758283504491,11.02779028,241.6,241.57,31.68]
[1758283504492,4.13924417,241.59,241.57,31.68]
[1758283505323,4.13924417,241.59,241.57,32.36]
[1758283505617,15.1673546,241.59,241.58,31.7]
[1758283505822,14.4873546,241.59,241.58,31.7]
[1758283506817,10.34811043,241.59,241.58,31.7]
[1758283514118,10.34811043,241.59,241.53,10.63243357]
[1758283514319,2.5991527,241.58,241.54,31.7]
[1758283514524,2.5991527,241.58,241.54,32.38]
[1758283514725,0.68,241.58,241.54,32.38]
[1758283514928,12.26726313,241.59,241.54,32.38]
[1758283514929,12.26726313,241.59,241.55,0.68]
[1758283515113,12.94726313,241.59,241.55,0.68]
[1758283515523,0.68,241.58,241.55,0.68]
[1758283515725,0.68,241.58,241.54,31.7]
[1758283515928,4.13958686,241.57,241.5,0.42648471]
[1758283516127,14.48855403,241.57,241.54,0.68]
[1758283516325,14.48855403,241.57,241.55,31.7]
[1758283517820,14.48855403,241.57,241.54,0.68]
[1758283518134,10.34896717,241.57,241.55,32.38]
[1758283518833,10.34896717,241.57,241.55,0.68]
[1758283519035,10.34896717,241.57,241.56,31.7]
[1758283520535,4.13941551,241.58,241.56,32.38]
[1758283521837,14.4873546,241.59,241.56,32.38]
[1758283522241,15.1673546,241.59,241.56,32.38]
[1758283522546,15.1673546,241.59,241.56,31.7]
[1758283522924,0.68,241.58,241.52,0.28432314]
[1758283523120,0.68,241.58,241.54,0.28432314]
[1758283523523,0.68,241.58,241.55,0.68]
[1758283523842,14.4873546,241.59,241.55,0.68]
[1758283524049,15.1673546,241.59,241.55,0.68]
[1758283524433,15.1673546,241.59,241.56,31.7]
[1758283524923,15.1673546,241.59,241.57,31.7]
[1758283525121,14.4873546,241.59,241.57,31.7]
[1758283527736,14.4873546,241.59,241.58,0.72]
[1758283528258,14.4873546,241.59,241.57,31.7]
[1758283528560,10.34811043,241.59,241.58,31.7]
[1758283530128,10.34811043,241.59,241.58,32.42]
[1758283531454,10.34811043,241.59,241.58,31.7]
[1758283532439,4.13890153,241.61,241.58,32.42]
[1758283532642,4.80890153,241.61,241.58,31.7]
[1758283532860,4.13890153,241.61,241.58,32.42]
[1758283533739,14.48615536,241.61,241.58,32.42]
[1758283533936,14.48615536,241.61,241.58,31.7]
[1758283534141,14.48615536,241.61,241.59,0.72]
[1758283534445,10.34725383,241.61,241.58,32.42]
[1758283535257,10.34725383,241.61,241.59,0.72]
[1758283535766,10.34725383,241.61,241.6,0.72]
[1758283538169,11.01725383,241.61,241.58,31.7]
[1758283538358,0.67,241.6,241.54,0.72]
[1758283538538,10.34725383,241.61,241.56,0.42648471]
[1758283538868,4.13856079,241.63,241.58,0.14216157]
[1758283539052,4.13856079,241.63,241.6,0.14216157]
[1758283539368,15.15495817,241.63,241.61,31.76]
[1758283539670,14.48495817,241.63,241.62,31.78]
[1758283540370,15.15495817,241.63,241.62,31.78]
[1758283540973,14.48495817,241.63,241.62,31.78]
[1758283544253,14.48495817,241.63,241.62,32.5]
[1758283546654,14.48495817,241.63,241.62,31.78]
[1758283547181,14.48495817,241.63,241.62,32.5]
[1758283547783,14.48495817,241.63,241.62,31.78]
[1758283548567,14.48495817,241.63,241.62,32.5]
[1758283554777,0.1,241.64,241.63,0.28432314]
[1758283555089,0.1,241.64,241.63,1.00432314]
[1758283555880,4.23840842,241.64,241.63,1.00432314]
[1758283557577,0.1,241.64,241.63,32.88648471]
[1758283557977,0.1,241.64,241.63,43.2518608]
[1758283560991,4.23838768,241.64,241.63,43.2518608]
[1758283561363,4.23838768,241.64,241.63,32.18648471]
[1758283561568,4.23838768,241.64,241.63,32.88648471]
[1758283561964,4.23838768,241.64,241.63,32.18648471]
[1758283562162,4.23838768,241.64,241.63,32.88648471]
[1758283563288,4.23838768,241.64,241.63,32.18648471]
[1758283563496,4.23838768,241.64,241.63,32.88648471]
[1758283563789,4.23838768,241.64,241.63,1.12648471]
[1758283563992,4.23838768,241.64,241.63,32.04432314]
[1758283564676,4.23838768,241.64,241.63,32.74432314]
[1758283568070,4.23838768,241.64,241.63,32.72432314]
[1758283571078,4.23838768,241.64,241.63,32.00432314]
[1758283572102,4.23838768,241.64,241.63,32.70432314]
[1758283574396,4.23838768,241.64,241.63,32.00432314]
[1758283576096,4.23838768,241.64,241.63,32.70432314]